[Event "Early-Titled-Tuesday-Blitz-March-12-2024"]
[Site "Chess.com"]
[Date "2024.03.12"]
[Round "1"]
[White "Egor_Koshulyan"]
[Black "AccioChess"]
[Result "1-0"]
[WhiteElo "2780"]
[BlackElo "2424"]
[TimeControl "180+1"]
[EndTime "8:07:37 PDT"]
[Termination "Egor_Koshulyan won on time"]

1. f4 {[%clk 0:03:00.9]} 1... c5 {[%clk 0:02:57.2]} 2. Nf3 {[%clk 0:03:01.4]}
2... Nc6 {[%clk 0:02:56.6]} 3. g3 {[%clk 0:03:02.1]} 3... g6 {[%clk 0:02:54.9]}
4. Bg2 {[%clk 0:03:03]} 4... Bg7 {[%clk 0:02:55]} 5. O-O {[%clk 0:03:03.9]} 5...
d5 {[%clk 0:02:54.1]} 6. d3 {[%clk 0:03:04.5]} 6... Nf6 {[%clk 0:02:54.1]} 7.
Nc3 {[%clk 0:03:05]} 7... d4 {[%clk 0:02:53.9]} 8. Na4 {[%clk 0:03:04.9]} 8...
Nd7 {[%clk 0:02:47.8]} 9. c4 {[%clk 0:03:03.1]} 9... O-O {[%clk 0:02:45.4]} 10.
e4 {[%clk 0:03:01.2]} 10... dxe3 {[%clk 0:02:34.9]} 11. Bxe3 {[%clk 0:03:00.9]}
11... b6 {[%clk 0:02:26.4]} 12. d4 {[%clk 0:02:46.7]} 12... Qc7 {[%clk
0:02:17.4]} 13. d5 {[%clk 0:02:43.1]} 13... Na5 {[%clk 0:02:12.4]} 14. Rc1
{[%clk 0:02:43.2]} 14... Nb7 {[%clk 0:02:10.8]} 15. f5 {[%clk 0:02:31.6]} 15...
gxf5 {[%clk 0:01:57]} 16. Bf4 {[%clk 0:02:24.3]} 16... Nd6 {[%clk 0:01:45.9]}
17. Nh4 {[%clk 0:02:22.4]} 17... Nf6 {[%clk 0:01:45.1]} 18. Bxd6 {[%clk
0:02:20.3]} 18... exd6 {[%clk 0:01:35.5]} 19. Nxf5 {[%clk 0:02:20.6]} 19... Bxf5
{[%clk 0:01:36]} 20. Rxf5 {[%clk 0:02:21.5]} 20... Qe7 {[%clk 0:01:34.7]} 21.
Nc3 {[%clk 0:02:02.6]} 21... Qe3+ {[%clk 0:01:26.5]} 22. Kh1 {[%clk 0:02:02.7]}
22... Ng4 {[%clk 0:01:25.8]} 23. Rc2 {[%clk 0:02:02.1]} 23... Ne5 {[%clk
0:01:16.7]} 24. Rf4 {[%clk 0:01:54.2]} 24... f5 {[%clk 0:01:02.5]} 25. Nb5
{[%clk 0:01:34.3]} 25... Bh6 {[%clk 0:00:39.5]} 26. Rf1 {[%clk 0:01:24.3]} 26...
Rf6 {[%clk 0:00:27.1]} 27. Nc7 {[%clk 0:01:19]} 27... Raf8 {[%clk 0:00:25.8]}
28. Ne6 {[%clk 0:01:19.2]} 28... R8f7 {[%clk 0:00:21.1]} 29. Nf4 {[%clk
0:00:54.5]} 29... Bxf4 {[%clk 0:00:20.2]} 30. Rxf4 {[%clk 0:00:54.5]} 30... Qd3
{[%clk 0:00:18.4]} 31. Rd2 {[%clk 0:00:53.7]} 31... Qe3 {[%clk 0:00:16.8]} 32.
Re2 {[%clk 0:00:45.5]} 32... Qd3 {[%clk 0:00:16.6]} 33. Rd2 {[%clk 0:00:43.9]}
33... Qe3 {[%clk 0:00:16.9]} 34. b3 {[%clk 0:00:44.6]} 34... Ng6 {[%clk
0:00:14.5]} 35. Rf3 {[%clk 0:00:44.3]} 35... Qe8 {[%clk 0:00:13.1]} 36. Re2
{[%clk 0:00:43.5]} 36... Re7 {[%clk 0:00:13.5]} 37. Rff2 {[%clk 0:00:39.7]}
37... f4 {[%clk 0:00:12.9]} 38. Rxe7 {[%clk 0:00:39.3]} 38... Qxe7 {[%clk
0:00:13.8]} 39. gxf4 {[%clk 0:00:32.6]} 39... Qe3 {[%clk 0:00:13.6]} 40. Rf3
{[%clk 0:00:29.9]} 40... Qe7 {[%clk 0:00:10.7]} 41. f5 {[%clk 0:00:28.7]} 41...
Ne5 {[%clk 0:00:11]} 42. Rg3+ {[%clk 0:00:29.1]} 42... Kf8 {[%clk 0:00:11.2]}
43. Qh5 {[%clk 0:00:29.5]} 43... Rf7 {[%clk 0:00:11.3]} 44. h4 {[%clk
0:00:18.9]} 44... Rg7 {[%clk 0:00:11]} 45. Qh6 {[%clk 0:00:14.4]} 45... Kg8
{[%clk 0:00:10.3]} 46. f6 {[%clk 0:00:13.9]} 46... Rxg3 {[%clk 0:00:08.7]} 47.
fxe7 {[%clk 0:00:14.1]} 1-0

[Event "Early-Titled-Tuesday-Blitz-March-12-2024"]
[Site "Chess.com"]
[Date "2024.03.12"]
[Round "1"]
[White "norwaytoadog"]
[Black "Susal_De_Silva"]
[Result "0-1"]
[WhiteElo "2321"]
[BlackElo "2704"]
[TimeControl "180+1"]
[EndTime "8:07:38 PDT"]
[Termination "Susal_De_Silva won by checkmate"]

1. e4 {[%clk 0:02:56.7]} 1... e5 {[%clk 0:02:59.4]} 2. Nf3 {[%clk 0:02:56.9]}
2... d6 {[%clk 0:02:59.7]} 3. d4 {[%clk 0:02:56.8]} 3... exd4 {[%clk 0:03:00.2]}
4. Nxd4 {[%clk 0:02:56.5]} 4... Nf6 {[%clk 0:03:00.5]} 5. Nc3 {[%clk 0:02:56.4]}
5... Be7 {[%clk 0:03:00.9]} 6. g3 {[%clk 0:02:56.2]} 6... O-O {[%clk 0:03:01]}
7. Bg2 {[%clk 0:02:56.4]} 7... Re8 {[%clk 0:03:01.2]} 8. O-O {[%clk 0:02:56.9]}
8... a5 {[%clk 0:02:59.9]} 9. a4 {[%clk 0:02:56]} 9... c6 {[%clk 0:02:59.9]} 10.
h3 {[%clk 0:02:55.2]} 10... Na6 {[%clk 0:03:00.2]} 11. b3 {[%clk 0:02:52.8]}
11... Nc5 {[%clk 0:02:59.6]} 12. Bb2 {[%clk 0:02:52.3]} 12... Bf8 {[%clk
0:02:59.8]} 13. Re1 {[%clk 0:02:52.1]} 13... g6 {[%clk 0:02:59]} 14. Qd2 {[%clk
0:02:50.3]} 14... Bg7 {[%clk 0:02:58.4]} 15. Rad1 {[%clk 0:02:49.9]} 15... Qb6
{[%clk 0:02:57.9]} 16. Kh2 {[%clk 0:02:42.5]} 16... Bd7 {[%clk 0:02:55.2]} 17.
Qf4 {[%clk 0:02:36.3]} 17... Rad8 {[%clk 0:02:51.1]} 18. Qh4 {[%clk 0:02:14.1]}
18... Bc8 {[%clk 0:02:41]} 19. f4 {[%clk 0:01:53]} 19... Nh5 {[%clk 0:02:27.3]}
20. Nf5 {[%clk 0:00:53.1]} 20... Bf6 {[%clk 0:02:12.7]} 21. Qg4 {[%clk
0:00:52.5]} 21... Kf8 {[%clk 0:01:50.7]} 22. Qf3 {[%clk 0:00:46.6]} 22... Nxe4
{[%clk 0:00:46]} 23. Nxe4 {[%clk 0:00:42.1]} 23... Bxb2 {[%clk 0:00:43.1]} 24.
Nfxd6 {[%clk 0:00:33]} 24... Re6 {[%clk 0:00:28.6]} 25. Nxc8 {[%clk 0:00:24.3]}
25... Rxc8 {[%clk 0:00:29.5]} 26. Ng5 {[%clk 0:00:20.7]} 26... Rxe1 {[%clk
0:00:27.3]} 27. Rxe1 {[%clk 0:00:20.8]} 27... Nf6 {[%clk 0:00:23.6]} 28. Ne4
{[%clk 0:00:16.5]} 28... Nxe4 {[%clk 0:00:20.3]} 29. Qxe4 {[%clk 0:00:15.7]}
29... Bf6 {[%clk 0:00:20.9]} 30. h4 {[%clk 0:00:14.5]} 30... Qc5 {[%clk
0:00:20.1]} 31. Bf1 {[%clk 0:00:14.1]} 31... Rd8 {[%clk 0:00:20]} 32. Bc4 {[%clk
0:00:12.2]} 32... Rd2+ {[%clk 0:00:18.4]} 33. Re2 {[%clk 0:00:12.4]} 33... Rd8
{[%clk 0:00:18]} 34. Kh3 {[%clk 0:00:11.1]} 34... Kg7 {[%clk 0:00:17]} 35. Qf3
{[%clk 0:00:07.6]} 35... Qg1 {[%clk 0:00:13.2]} 36. Qg2 {[%clk 0:00:07]} 36...
Qc1 {[%clk 0:00:13.1]} 37. h5 {[%clk 0:00:06]} 37... Rd1 {[%clk 0:00:12.9]} 38.
hxg6 {[%clk 0:00:05.6]} 38... hxg6 {[%clk 0:00:13.8]} 39. f5 {[%clk 0:00:04.6]}
39... Qh6+ {[%clk 0:00:12.9]} 40. Kg4 {[%clk 0:00:04]} 40... Qh5+ {[%clk
0:00:13.2]} 41. Kf4 {[%clk 0:00:03.7]} 41... Qxf5+ {[%clk 0:00:12.9]} 42. Ke3
{[%clk 0:00:03.5]} 42... Bg5# {[%clk 0:00:13.4]} 0-1

[Event "Early-Titled-Tuesday-Blitz-March-12-2024"]
[Site "Chess.com"]
[Date "2024.03.12"]
[Round "1"]
[White "Akhayan"]
[Black "Aygehovit1992"]
[Result "0-1"]
[WhiteElo "2313"]
[BlackElo "2696"]
[TimeControl "180+1"]
[EndTime "8:07:39 PDT"]
[Termination "Aygehovit1992 won by resignation"]

1. e4 {[%clk 0:02:53.3]} 1... c5 {[%clk 0:02:57.9]} 2. Nf3 {[%clk 0:02:53.2]}
2... e6 {[%clk 0:02:57.2]} 3. d4 {[%clk 0:02:52.4]} 3... cxd4 {[%clk 0:02:57.7]}
4. Nxd4 {[%clk 0:02:52.9]} 4... Nc6 {[%clk 0:02:58.2]} 5. Nc3 {[%clk 0:02:52.5]}
5... Qc7 {[%clk 0:02:57.4]} 6. g3 {[%clk 0:02:52.5]} 6... a6 {[%clk 0:02:55.1]}
7. Bg2 {[%clk 0:02:53]} 7... Nf6 {[%clk 0:02:52.3]} 8. O-O {[%clk 0:02:53.2]}
8... h5 {[%clk 0:02:52.3]} 9. Re1 {[%clk 0:02:47]} 9... Nxd4 {[%clk 0:02:44.4]}
10. Qxd4 {[%clk 0:02:46.1]} 10... Bc5 {[%clk 0:02:44.7]} 11. Bf4 {[%clk
0:02:37.4]} 11... Bxd4 {[%clk 0:02:14.1]} 12. Bxc7 {[%clk 0:02:34.9]} 12... h4
{[%clk 0:02:00.2]} 13. Rad1 {[%clk 0:02:27.9]} 13... Ba7 {[%clk 0:01:59.5]} 14.
Na4 {[%clk 0:02:19.8]} 14... h3 {[%clk 0:01:59.3]} 15. Bf3 {[%clk 0:02:05.4]}
15... b5 {[%clk 0:01:41.1]} 16. e5 {[%clk 0:01:21.5]} 16... Nd5 {[%clk
0:01:40.3]} 17. Rxd5 {[%clk 0:01:03.3]} 17... Bb7 {[%clk 0:01:39.8]} 18. Rd3
{[%clk 0:00:42.2]} 18... Bxf3 {[%clk 0:01:40.2]} 19. Rxf3 {[%clk 0:00:42.8]}
19... bxa4 {[%clk 0:01:40.7]} 20. Bd6 {[%clk 0:00:41.8]} 20... Rc8 {[%clk
0:01:36.4]} 21. c3 {[%clk 0:00:40.4]} 21... Rc6 {[%clk 0:01:29.5]} 22. Rf4
{[%clk 0:00:40.2]} 22... f5 {[%clk 0:01:28.1]} 23. Rxa4 {[%clk 0:00:37.7]} 23...
g5 {[%clk 0:01:27.8]} 24. Rb4 {[%clk 0:00:36.5]} 24... Rh7 {[%clk 0:00:50.9]}
25. Rb7 {[%clk 0:00:35.7]} 25... Bc5 {[%clk 0:00:50.9]} 26. Rb8+ {[%clk
0:00:35.4]} 26... Kf7 {[%clk 0:00:51.1]} 27. Rd1 {[%clk 0:00:32.7]} 27... Bxd6
{[%clk 0:00:50.1]} 28. Rxd6 {[%clk 0:00:33.4]} 28... Rxd6 {[%clk 0:00:50.3]} 29.
exd6 {[%clk 0:00:33.8]} 29... e5 {[%clk 0:00:48.6]} 30. Ra8 {[%clk 0:00:32.1]}
30... Ke6 {[%clk 0:00:41.3]} 31. Rxa6 {[%clk 0:00:32.6]} 31... Kd5 {[%clk
0:00:42]} 32. Kf1 {[%clk 0:00:31.6]} 32... g4 {[%clk 0:00:33]} 33. Ke2 {[%clk
0:00:30.7]} 33... f4 {[%clk 0:00:33.5]} 34. gxf4 {[%clk 0:00:29.9]} 34... exf4
{[%clk 0:00:33.5]} 35. Ra4 {[%clk 0:00:28.8]} 35... g3 {[%clk 0:00:32.4]} 36.
fxg3 {[%clk 0:00:25.6]} 36... fxg3 {[%clk 0:00:32.4]} 37. Rd4+ {[%clk
0:00:22.8]} 37... Kc5 {[%clk 0:00:31.8]} 38. Rd1 {[%clk 0:00:19.3]} 38... g2
{[%clk 0:00:31]} 39. Rg1 {[%clk 0:00:19.7]} 39... Rf7 {[%clk 0:00:29.3]} 40. Ke3
{[%clk 0:00:10.6]} 40... Kxd6 {[%clk 0:00:29.3]} 41. Ke2 {[%clk 0:00:09.9]}
41... Kc5 {[%clk 0:00:29.4]} 42. a4 {[%clk 0:00:09.2]} 42... d5 {[%clk
0:00:28.1]} 43. b3 {[%clk 0:00:09.6]} 43... Rf4 {[%clk 0:00:21]} 44. Ke1 {[%clk
0:00:08.4]} 44... Rf3 {[%clk 0:00:18.7]} 45. Ke2 {[%clk 0:00:06.5]} 45... Rxc3
{[%clk 0:00:18.9]} 46. a5 {[%clk 0:00:05.3]} 46... Rxb3 {[%clk 0:00:17.4]} 47.
a6 {[%clk 0:00:05.7]} 47... Ra3 {[%clk 0:00:17.9]} 0-1

[Event "Early-Titled-Tuesday-Blitz-March-12-2024"]
[Site "Chess.com"]
[Date "2024.03.12"]
[Round "1"]
[White "tomobeast"]
[Black "littlepinkyboy"]
[Result "0-1"]
[WhiteElo "2223"]
[BlackElo "2626"]
[TimeControl "180+1"]
[EndTime "8:07:39 PDT"]
[Termination "littlepinkyboy won by resignation"]

1. e4 {[%clk 0:02:48.2]} 1... c5 {[%clk 0:02:56.2]} 2. Nf3 {[%clk 0:02:45]} 2...
e6 {[%clk 0:02:49.9]} 3. c4 {[%clk 0:02:42]} 3... Nc6 {[%clk 0:02:34.5]} 4. Nc3
{[%clk 0:02:39.7]} 4... Nf6 {[%clk 0:02:29.4]} 5. Be2 {[%clk 0:02:29.6]} 5...
Nd4 {[%clk 0:02:24.2]} 6. e5 {[%clk 0:02:00.1]} 6... Nxe2 {[%clk 0:02:04.1]} 7.
Qxe2 {[%clk 0:01:54.8]} 7... Nh5 {[%clk 0:02:04.3]} 8. d4 {[%clk 0:01:37.7]}
8... cxd4 {[%clk 0:01:45.8]} 9. Nxd4 {[%clk 0:01:38.6]} 9... g6 {[%clk
0:01:46.2]} 10. O-O {[%clk 0:01:34.5]} 10... Be7 {[%clk 0:01:43.1]} 11. Bh6
{[%clk 0:01:27.5]} 11... d6 {[%clk 0:01:32.7]} 12. Rad1 {[%clk 0:01:19.5]} 12...
dxe5 {[%clk 0:01:30.4]} 13. Nxe6 {[%clk 0:00:59.4]} 13... Qa5 {[%clk 0:00:46]}
14. Ng7+ {[%clk 0:00:35.9]} 14... Nxg7 {[%clk 0:00:46.2]} 15. Bxg7 {[%clk
0:00:36.8]} 15... Rg8 {[%clk 0:00:46.9]} 16. Bxe5 {[%clk 0:00:36.1]} 16... Be6
{[%clk 0:00:46.3]} 17. Nd5 {[%clk 0:00:31.7]} 17... Bd8 {[%clk 0:00:43.7]} 18.
b3 {[%clk 0:00:24.5]} 18... g5 {[%clk 0:00:30.5]} 19. Bf6 {[%clk 0:00:24]} 19...
Rg6 {[%clk 0:00:26]} 20. Bxd8 {[%clk 0:00:21.1]} 20... Rxd8 {[%clk 0:00:26.9]}
21. f4 {[%clk 0:00:20.5]} 21... Qc5+ {[%clk 0:00:14]} 22. Kh1 {[%clk 0:00:19.6]}
22... gxf4 {[%clk 0:00:14.5]} 23. Nxf4 {[%clk 0:00:20.2]} 23... Rxd1 {[%clk
0:00:13.1]} 24. Rxd1 {[%clk 0:00:19.4]} 24... Rf6 {[%clk 0:00:13.8]} 25. Qe4
{[%clk 0:00:13.4]} 25... Qf5 {[%clk 0:00:04.1]} 26. Qxf5 {[%clk 0:00:04.4]}
26... Rxf5 {[%clk 0:00:05]} 27. Nxe6 {[%clk 0:00:04.2]} 27... fxe6 {[%clk
0:00:05.7]} 28. g3 {[%clk 0:00:02.5]} 28... Rf2 {[%clk 0:00:05.9]} 29. Rd6
{[%clk 0:00:01.7]} 29... Ke7 {[%clk 0:00:05.7]} 30. Rd3 {[%clk 0:00:01.2]} 30...
Rxa2 {[%clk 0:00:06.3]} 31. Kg1 {[%clk 0:00:02]} 31... Rb2 {[%clk 0:00:06.6]}
32. Re3 {[%clk 0:00:02.4]} 32... a5 {[%clk 0:00:07]} 33. c5 {[%clk 0:00:01.9]}
33... Rc2 {[%clk 0:00:06.7]} 34. g4 {[%clk 0:00:02.5]} 34... Rxc5 {[%clk
0:00:06.5]} 35. Kg2 {[%clk 0:00:03.4]} 35... b5 {[%clk 0:00:06.6]} 36. Kf3
{[%clk 0:00:04.2]} 36... a4 {[%clk 0:00:07.2]} 37. bxa4 {[%clk 0:00:04.8]} 37...
bxa4 {[%clk 0:00:08.1]} 38. Re4 {[%clk 0:00:03.8]} 38... Ra5 {[%clk 0:00:07.5]}
39. Rb4 {[%clk 0:00:04]} 39... a3 {[%clk 0:00:07.5]} 40. Rb7+ {[%clk 0:00:04.9]}
40... Kd6 {[%clk 0:00:07.2]} 41. Kf4 {[%clk 0:00:04.1]} 41... a2 {[%clk
0:00:06.9]} 0-1

[Event "Early-Titled-Tuesday-Blitz-March-12-2024"]
[Site "Chess.com"]
[Date "2024.03.12"]
[Round "1"]
[White "Langusto"]
[Black "kirillshevchenko"]
[Result "1-0"]
[WhiteElo "2518"]
[BlackElo "2875"]
[TimeControl "180+1"]
[EndTime "8:07:40 PDT"]
[Termination "Langusto won on time"]

1. e4 {[%clk 0:02:59]} 1... c6 {[%clk 0:02:56.9]} 2. d4 {[%clk 0:02:58.2]} 2...
d5 {[%clk 0:02:57.6]} 3. exd5 {[%clk 0:02:59.1]} 3... cxd5 {[%clk 0:02:57.8]} 4.
c4 {[%clk 0:02:59.1]} 4... Nf6 {[%clk 0:02:56.5]} 5. Nc3 {[%clk 0:02:59.5]} 5...
Be6 {[%clk 0:02:57.3]} 6. Bg5 {[%clk 0:02:57.6]} 6... Nc6 {[%clk 0:02:50.5]} 7.
a3 {[%clk 0:02:56.9]} 7... g6 {[%clk 0:02:44.7]} 8. Bxf6 {[%clk 0:02:57]} 8...
exf6 {[%clk 0:02:44.7]} 9. cxd5 {[%clk 0:02:57.9]} 9... Bxd5 {[%clk 0:02:45.4]}
10. Qe2+ {[%clk 0:02:58.4]} 10... Be7 {[%clk 0:02:43.7]} 11. Qb5 {[%clk
0:02:56.2]} 11... Be6 {[%clk 0:02:02.2]} 12. d5 {[%clk 0:02:55.3]} 12... Bd7
{[%clk 0:02:02]} 13. dxc6 {[%clk 0:02:50.1]} 13... Bxc6 {[%clk 0:02:02.9]} 14.
Qb3 {[%clk 0:02:08.5]} 14... O-O {[%clk 0:01:59.5]} 15. Nf3 {[%clk 0:02:08.3]}
15... Bxf3 {[%clk 0:01:23.4]} 16. gxf3 {[%clk 0:02:09.2]} 16... f5 {[%clk
0:01:12.9]} 17. Rd1 {[%clk 0:01:52.8]} 17... Bd6 {[%clk 0:01:07.7]} 18. Be2
{[%clk 0:01:43]} 18... Qb8 {[%clk 0:00:43.9]} 19. h4 {[%clk 0:01:40.7]} 19... h5
{[%clk 0:00:36.5]} 20. Rg1 {[%clk 0:01:37.7]} 20... Kh7 {[%clk 0:00:32.3]} 21.
Nd5 {[%clk 0:01:33.2]} 21... Be5 {[%clk 0:00:29.3]} 22. f4 {[%clk 0:00:59.3]}
22... Bxf4 {[%clk 0:00:27.9]} 23. Nf6+ {[%clk 0:00:54.2]} 23... Kh6 {[%clk
0:00:28.2]} 24. Nd7 {[%clk 0:00:40.5]} 24... Qd8 {[%clk 0:00:27]} 25. Qb4 {[%clk
0:00:32.4]} 25... Qxh4 {[%clk 0:00:21.9]} 26. Nxf8 {[%clk 0:00:20.2]} 26... a5
{[%clk 0:00:22.2]} 27. Nxg6 {[%clk 0:00:14.3]} 27... fxg6 {[%clk 0:00:21.7]} 28.
Qxb7 {[%clk 0:00:12.5]} 28... Rb8 {[%clk 0:00:08.8]} 29. Qc6 {[%clk 0:00:10.7]}
29... Rg8 {[%clk 0:00:09.3]} 30. Rd7 {[%clk 0:00:07.6]} 30... Be3 {[%clk
0:00:07.8]} 31. Qg2 {[%clk 0:00:07.3]} 31... Bd4 {[%clk 0:00:04.4]} 32. b4
{[%clk 0:00:06.3]} 32... axb4 {[%clk 0:00:04.2]} 33. axb4 {[%clk 0:00:07.2]}
33... Bc3+ {[%clk 0:00:04.9]} 34. Kf1 {[%clk 0:00:07.7]} 34... Qf4 {[%clk
0:00:05]} 35. Qd5 {[%clk 0:00:06.8]} 35... Rf8 {[%clk 0:00:02.3]} 36. Rd6 {[%clk
0:00:05.5]} 36... Bf6 {[%clk 0:00:01.4]} 37. b5 {[%clk 0:00:05.3]} 37... Qc1+
{[%clk 0:00:00.6]} 38. Qd1 {[%clk 0:00:04.3]} 1-0

[Event "Early-Titled-Tuesday-Blitz-March-12-2024"]
[Site "Chess.com"]
[Date "2024.03.12"]
[Round "1"]
[White "ActorXu"]
[Black "chess_blitz00"]
[Result "1-0"]
[WhiteElo "2864"]
[BlackElo "2484"]
[TimeControl "180+1"]
[EndTime "8:07:40 PDT"]
[Termination "ActorXu won by checkmate"]

1. e4 {[%clk 0:02:54]} 1... e5 {[%clk 0:02:56.9]} 2. Nf3 {[%clk 0:02:54]} 2...
Nc6 {[%clk 0:02:55.3]} 3. Bc4 {[%clk 0:02:54]} 3... Nf6 {[%clk 0:02:52.5]} 4. d3
{[%clk 0:02:53.9]} 4... Bc5 {[%clk 0:02:51.9]} 5. O-O {[%clk 0:02:52.7]} 5... d6
{[%clk 0:02:52.4]} 6. c3 {[%clk 0:02:53.2]} 6... a5 {[%clk 0:02:51.9]} 7. Nbd2
{[%clk 0:02:52.7]} 7... O-O {[%clk 0:02:51.9]} 8. h3 {[%clk 0:02:51.8]} 8... Ba7
{[%clk 0:02:44.6]} 9. Re1 {[%clk 0:02:51.2]} 9... Be6 {[%clk 0:02:43.6]} 10. Bb5
{[%clk 0:02:50.6]} 10... Ne7 {[%clk 0:02:42.3]} 11. d4 {[%clk 0:02:48.2]} 11...
Ng6 {[%clk 0:02:35.5]} 12. Ba4 {[%clk 0:02:43]} 12... c6 {[%clk 0:02:22.6]} 13.
Bc2 {[%clk 0:02:42.6]} 13... b5 {[%clk 0:02:16.5]} 14. a4 {[%clk 0:02:39.2]}
14... b4 {[%clk 0:02:14.3]} 15. Nf1 {[%clk 0:02:39.1]} 15... c5 {[%clk
0:02:08.3]} 16. d5 {[%clk 0:02:33.8]} 16... Bd7 {[%clk 0:02:08.4]} 17. c4 {[%clk
0:02:32.6]} 17... Bb6 {[%clk 0:02:01.3]} 18. Ng3 {[%clk 0:02:32.2]} 18... Qc8
{[%clk 0:01:59.2]} 19. b3 {[%clk 0:02:29]} 19... Bd8 {[%clk 0:01:56.9]} 20. Bd3
{[%clk 0:02:28.2]} 20... Be7 {[%clk 0:01:56.7]} 21. Bb2 {[%clk 0:02:27.4]} 21...
Nf4 {[%clk 0:01:43]} 22. Bf1 {[%clk 0:02:27.9]} 22... h5 {[%clk 0:01:29]} 23.
Qd2 {[%clk 0:02:08.6]} 23... h4 {[%clk 0:01:02.5]} 24. Nxh4 {[%clk 0:02:00.8]}
24... N6xd5 {[%clk 0:01:02.8]} 25. Nhf5 {[%clk 0:01:55.8]} 25... Bxf5 {[%clk
0:00:44.4]} 26. Nxf5 {[%clk 0:01:54.1]} 26... Bg5 {[%clk 0:00:33.8]} 27. cxd5
{[%clk 0:01:47.1]} 27... Nxh3+ {[%clk 0:00:33.1]} 28. gxh3 {[%clk 0:01:47.2]}
28... Bxd2 {[%clk 0:00:32.8]} 29. Ne7+ {[%clk 0:01:47.3]} 29... Kh7 {[%clk
0:00:28.2]} 30. Nxc8 {[%clk 0:01:48]} 30... Bxe1 {[%clk 0:00:24.2]} 31. Nb6
{[%clk 0:01:40.1]} 31... Bd2 {[%clk 0:00:19.6]} 32. Nxa8 {[%clk 0:01:39.6]}
32... Rxa8 {[%clk 0:00:20.5]} 33. Rd1 {[%clk 0:01:32.7]} 33... Bf4 {[%clk
0:00:19.9]} 34. Bc1 {[%clk 0:01:32.3]} 34... g5 {[%clk 0:00:19]} 35. Bxf4 {[%clk
0:01:32]} 35... gxf4 {[%clk 0:00:16.7]} 36. Be2 {[%clk 0:01:25.4]} 36... Kg6
{[%clk 0:00:13.7]} 37. Kh2 {[%clk 0:01:20.7]} 37... Kf6 {[%clk 0:00:12.2]} 38.
Rg1 {[%clk 0:01:19.6]} 38... Rc8 {[%clk 0:00:12.3]} 39. h4 {[%clk 0:01:18.3]}
39... f3 {[%clk 0:00:05.2]} 40. Bc4 {[%clk 0:01:16.9]} 40... Rh8 {[%clk
0:00:02.4]} 41. Rg4 {[%clk 0:01:16.8]} 41... Ke7 {[%clk 0:00:01.7]} 42. Kg3
{[%clk 0:01:16.9]} 42... Rh6 {[%clk 0:00:01.6]} 43. Kxf3 {[%clk 0:01:16.8]}
43... Rf6+ {[%clk 0:00:02.5]} 44. Kg3 {[%clk 0:01:17.1]} 44... Rh6 {[%clk
0:00:02.9]} 45. f3 {[%clk 0:01:13.2]} 45... Rf6 {[%clk 0:00:03.2]} 46. h5 {[%clk
0:01:13]} 46... Rh6 {[%clk 0:00:03.4]} 47. Kh4 {[%clk 0:01:13.3]} 47... Rh8
{[%clk 0:00:01.8]} 48. Rg5 {[%clk 0:01:10]} 48... Kf6 {[%clk 0:00:02.3]} 49. Kg4
{[%clk 0:01:08.9]} 49... Rf8 {[%clk 0:00:01.3]} 50. h6 {[%clk 0:01:08.3]} 50...
Rh8 {[%clk 0:00:01.8]} 51. Kh5 {[%clk 0:01:08.6]} 51... Ke7 {[%clk 0:00:02.3]}
52. Rf5 {[%clk 0:01:05.5]} 52... f6 {[%clk 0:00:02.6]} 53. f4 {[%clk 0:01:04.2]}
53... Rh7 {[%clk 0:00:02.1]} 54. fxe5 {[%clk 0:01:04.3]} 54... fxe5 {[%clk
0:00:02.4]} 55. Kg6 {[%clk 0:01:03.2]} 55... Rh8 {[%clk 0:00:03.1]} 56. Kg7
{[%clk 0:01:03.3]} 56... Re8 {[%clk 0:00:03.8]} 57. Rf7+ {[%clk 0:01:02.4]}
57... Kd8 {[%clk 0:00:04]} 58. Rf8 {[%clk 0:01:02.7]} 58... Ke7 {[%clk
0:00:03.9]} 59. Rxe8+ {[%clk 0:01:02.7]} 59... Kxe8 {[%clk 0:00:04.8]} 60. h7
{[%clk 0:01:03.4]} 60... Kd7 {[%clk 0:00:05.6]} 61. h8=Q {[%clk 0:01:03.6]}
61... Ke7 {[%clk 0:00:06.5]} 62. Qf8+ {[%clk 0:01:03.8]} 62... Kd7 {[%clk
0:00:07.4]} 63. Qf7+ {[%clk 0:01:04.3]} 63... Kd8 {[%clk 0:00:07.8]} 64. Bb5
{[%clk 0:01:03.7]} 64... Kc8 {[%clk 0:00:08.7]} 65. Bc6 {[%clk 0:01:03.8]} 65...
Kb8 {[%clk 0:00:09.6]} 66. Qb7# {[%clk 0:01:04.1]} 1-0

[Event "Early-Titled-Tuesday-Blitz-March-12-2024"]
[Site "Chess.com"]
[Date "2024.03.12"]
[Round "1"]
[White "chezzgirl04"]
[Black "CarlosjPineror"]
[Result "0-1"]
[WhiteElo "2138"]
[BlackElo "2603"]
[TimeControl "180+1"]
[EndTime "8:07:40 PDT"]
[Termination "CarlosjPineror won on time"]

1. e4 {[%clk 0:02:59]} 1... c5 {[%clk 0:02:59.5]} 2. Nf3 {[%clk 0:02:58.4]} 2...
e6 {[%clk 0:02:59.5]} 3. c3 {[%clk 0:02:57.8]} 3... Nf6 {[%clk 0:02:59.1]} 4.
Bd3 {[%clk 0:02:55.5]} 4... Nc6 {[%clk 0:02:58.6]} 5. Bc2 {[%clk 0:02:55.8]}
5... d5 {[%clk 0:02:58.9]} 6. exd5 {[%clk 0:02:53.4]} 6... Nxd5 {[%clk
0:02:54.2]} 7. O-O {[%clk 0:02:53.3]} 7... Be7 {[%clk 0:02:47.4]} 8. d4 {[%clk
0:02:53.2]} 8... cxd4 {[%clk 0:02:46]} 9. Nxd4 {[%clk 0:02:53.5]} 9... Bd7
{[%clk 0:02:46.7]} 10. Nb5 {[%clk 0:02:39.8]} 10... a6 {[%clk 0:02:41.8]} 11.
Nd4 {[%clk 0:02:33.2]} 11... Nxd4 {[%clk 0:02:29.2]} 12. cxd4 {[%clk 0:02:25.6]}
12... Rc8 {[%clk 0:02:24.5]} 13. a3 {[%clk 0:02:24.9]} 13... O-O {[%clk
0:02:20.3]} 14. Qd3 {[%clk 0:02:20.5]} 14... g6 {[%clk 0:02:19.2]} 15. Bh6
{[%clk 0:02:19.3]} 15... Re8 {[%clk 0:02:18.3]} 16. Nc3 {[%clk 0:02:15.1]} 16...
Nxc3 {[%clk 0:02:16.2]} 17. bxc3 {[%clk 0:02:14.8]} 17... Bb5 {[%clk 0:02:15.9]}
18. Qe3 {[%clk 0:01:39.4]} 18... Bxf1 {[%clk 0:02:13.4]} 19. Rxf1 {[%clk
0:01:39.7]} 19... Qc7 {[%clk 0:02:09.8]} 20. Be4 {[%clk 0:01:10.8]} 20... b5
{[%clk 0:02:03.6]} 21. Rc1 {[%clk 0:01:09.7]} 21... Bxa3 {[%clk 0:02:04]} 22.
Rc2 {[%clk 0:01:09.5]} 22... Be7 {[%clk 0:02:03.6]} 23. g3 {[%clk 0:01:04.7]}
23... a5 {[%clk 0:02:01.5]} 24. h4 {[%clk 0:01:04.5]} 24... a4 {[%clk
0:01:42.6]} 25. h5 {[%clk 0:01:03.2]} 25... Bf6 {[%clk 0:01:25.6]} 26. hxg6
{[%clk 0:00:42.9]} 26... hxg6 {[%clk 0:01:25.4]} 27. Qf3 {[%clk 0:00:37.6]}
27... Bg7 {[%clk 0:01:25.4]} 28. Bf4 {[%clk 0:00:34.2]} 28... Qd7 {[%clk
0:01:19.3]} 29. Kg2 {[%clk 0:00:26.3]} 29... a3 {[%clk 0:01:09.6]} 30. Ra2
{[%clk 0:00:26.4]} 30... Qe7 {[%clk 0:01:01.2]} 31. Bc1 {[%clk 0:00:25.5]} 31...
b4 {[%clk 0:00:48.2]} 32. cxb4 {[%clk 0:00:23.3]} 32... Rxc1 {[%clk 0:00:47.8]}
33. Qxa3 {[%clk 0:00:17.9]} 33... Rc4 {[%clk 0:00:38.7]} 34. Qb3 {[%clk
0:00:10.4]} 34... Rxb4 {[%clk 0:00:35.4]} 35. Qf3 {[%clk 0:00:10.1]} 35... Rxd4
{[%clk 0:00:34.7]} 36. Re2 {[%clk 0:00:10.5]} 36... Qf6 {[%clk 0:00:34.3]} 37.
Qe3 {[%clk 0:00:10.4]} 37... Red8 {[%clk 0:00:34.4]} 38. Re1 {[%clk 0:00:10.8]}
38... Rd2 {[%clk 0:00:31.8]} 39. Rh1 {[%clk 0:00:10.8]} 39... Qd4 {[%clk
0:00:31.1]} 40. Qf4 {[%clk 0:00:08]} 40... Rxf2+ {[%clk 0:00:27.6]} 41. Qxf2
{[%clk 0:00:06.4]} 41... Qxe4+ {[%clk 0:00:27.9]} 42. Kh2 {[%clk 0:00:06]} 42...
Rb8 {[%clk 0:00:25.6]} 43. Kh3 {[%clk 0:00:04.5]} 43... Qxh1+ {[%clk 0:00:24.7]}
44. Kg4 {[%clk 0:00:04]} 44... Rb4+ {[%clk 0:00:24.1]} 0-1